Cogmind - Beta 16 @@@ ROGUE MODE // 2025.11.14 @ 14:02:27 // Winter2019/RPGLIKE Player: GFYguy Result: Destroyed by Y-64 Sentinel with KE Penetrator Performance ------------- Evolutions (6) 3000 Regions Visited (16) 3200 Robots Destroyed (51) 255 Value Destroyed (1957) 1957 Prototype IDs (16) 320 Alien Tech Used (0) 0 Bonus (800) 800 TOTAL SCORE: 9532 Bonus ------- Entered DSFs 500 Met Data Miner 300 Cogmind --------- Core Integrity 0/900 Matter 131/300 Energy 95/200 System Corruption 0% Temperature Cool (4) Movement Flying (111) Ox1 Location -4/Factory Parts ------- > --- POWER (2) -------- Micro Fission Core Micro Fission Core > --- PROPULSION (6) --- Nuclear Pulse Thruster Nuclear Pulse Thruster Nuclear Pulse Thruster Nuclear Pulse Thruster > --- UTILITY (7) ------ Improved Cooling System Improved Sensor Array Improved Signal Interpreter Improved Force Field > --- WEAPON (3) ------- Gauss Rifle Gauss Rifle Gauss Rifle > --- INVENTORY (3) ---- Makeshift Flight Unit Nuclear Pulse Thruster Bore Cannon Peak State ------------ > --- POWER ------------ Micro Fission Core Micro Fission Core > --- PROPULSION ------- Makeshift Flight Unit Makeshift Flight Unit Nuclear Pulse Thruster Nuclear Pulse Thruster Nuclear Pulse Thruster Nuclear Pulse Thruster > --- UTILITY ---------- Improved Cooling System Improved Sensor Array Improved Signal Interpreter Phase Shifter Improved Force Field > --- WEAPON ----------- Gauss Rifle Gauss Rifle Bore Cannon > --- INVENTORY -------- Makeshift Flight Unit Makeshift Flight Unit Gauss Rifle [Rating: 76] Favorites ----------- Power Micro Nuclear Core Engine Improved Ion Engine Power Core Micro Nuclear Core Propulsion Cesium-ion Thruster Leg Aluminum Leg Flight Unit Cesium-ion Thruster Utility Improved Cooling System Device Improved Cooling System Processor Improved Signal Interpreter Hackware Makeshift System Shield Protection Light Armor Plating Weapon Gauss Rifle Energy Gun EM Pulse Gun Ballistic Gun Gauss Rifle Ballistic Cannon Assault Cannon Slashing Weapon Greatsword Build | -11 -10 -10 -9 -9 -9 -7 -7 -7 -7 -6 -6 -6 -6 -5 -5 -4 ------- Run | Yrd Mat Min Mat Sto Rec Fac Low Low Dat Pro Fac Low Low Fac DSF Fac Slots Evolved 14 | 4 . . 2 1 . 2 1 . . . 1 2 . . 1 . Power 1 | 1 . . . . . . . . . . . . . . . . Propulsion 5 | 1 . . 2 . . . 1 . . . . 1 . . . . Utility 6 | 1 . . . 1 . 1 . . . . 1 1 . . 1 . Weapon 2 | 1 . . . . . 1 . . . . . . . . . . Parts Attached 67 | 6 2 4 8 4 . 19 1 2 . . 5 7 . . 7 2 Power 13 | 1 . 1 1 2 . 4 . 1 . . 1 . . . 2 . Engine 7 | 1 . . 1 2 . 2 . 1 . . . . . . . . Core 6 | . . 1 . . . 2 . . . . 1 . . . 2 . Reactor . | . . . . . . . . . . . . . . . . . Propulsion 19 | 2 . 2 4 . . 2 1 . . . . 4 . . 2 2 Treads . | . . . . . . . . . . . . . . . . . Leg 4 | 2 . 2 . . . . . . . . . . . . . . Wheel . | . . . . . . . . . . . . . . . . . Hover . | . . . . . . . . . . . . . . . . . Flight 15 | . . . 4 . . 2 1 . . . . 4 . . 2 2 Utility 22 | . 2 . 1 2 . 9 . . . . 3 3 . . 2 . Device 16 | . 1 . 1 1 . 7 . . . . 2 3 . . 1 . Storage . | . . . . . . . . . . . . . . . . . Processor 3 | . . . . 1 . 2 . . . . . . . . . . Hackware 1 | . . . . . . . . . . . 1 . . . . . Protection 2 | . 1 . . . . . . . . . . . . . 1 . Artifact . | . . . . . . . . . . . . . . . . . Weapon 13 | 3 . 1 2 . . 4 . 1 . . 1 . . . 1 . Energy Gun 5 | 3 . . 1 . . 1 . . . . . . . . . . Energy Cannon . | . . . . . . . . . . . . . . . . . Ballistic Gun 4 | . . . 1 . . 1 . 1 . . 1 . . . . . Ballistic Cannon 3 | . . 1 . . . 1 . . . . . . . . 1 . Launcher . | . . . . . . . . . . . . . . . . . Special Weapon . | . . . . . . . . . . . . . . . . . Impact Weapon . | . . . . . . . . . . . . . . . . . Slashing Weapon 1 | . . . . . . 1 . . . . . . . . . . Piercing Weapon . | . . . . . . . . . . . . . . . . . Special Melee Weapon . | . . . . . . . . . . . . . . . . . Unidentified Prototypes 2 | . . . 1 1 . . . . . . . . . . . . Parts Lost 5 | . . . 1 . . . . . . . . 1 . . 2 1 Power . | . . . . . . . . . . . . . . . . . Propulsion 2 | . . . . . . . . . . . . 1 . . 1 . Utility 3 | . . . 1 . . . . . . . . . . . 1 1 Weapon . | . . . . . . . . . . . . . . . . . Highest Loss Streak 3 | . . . 1 . . . . . . . . 1 . . 2 3 To Critical Strikes . | . . . . . . . . . . . . . . . . . Average Backups . | . . . 1 . . . 1 3 3 3 1 2 2 2 2 2 Power . | . . . . . . . . . . . . . . . . . Propulsion . | . . . . . . . . . . . . . . . . 1 Utility . | . . . 1 . . . . 1 1 1 . 1 1 1 . . Weapon . | . . . . . . . 1 2 2 2 1 1 1 1 1 1 Tool/Special . | . . . . . . . . . . . . . . . . . Unused Backups 1 | . . . . . . . . . . . . . . . 1 . Power . | . . . . . . . . . . . . . . . . . Propulsion . | . . . . . . . . . . . . . . . . . Utility 1 | . . . . . . . . . . . . . . . 1 . Weapon . | . . . . . . . . . . . . . . . . . Tool/Special . | . . . . . . . . . . . . . . . . . Average Slot Usage (%) 90 | . 84 87 91 100 100 87 84 88 92 92 97 97 100 100 93 88 Engine 7 | . 12 12 11 16 18 8 . 3 7 7 5 . . . . . Core 5 | . . . 11 1 . 5 14 10 7 7 7 11 11 11 11 11 Leg 6 | . 25 25 20 . . . . . . . . . . . . . Flight 24 | . . . 7 36 36 30 30 35 35 35 33 31 35 35 32 33 Device 18 | . 10 12 12 18 18 20 22 21 21 21 20 26 29 29 26 22 Processor 5 | . . . . 8 9 7 7 7 7 7 6 5 5 5 5 5 Protection 2 | . 10 12 3 . . . . . . . . . . . . . Energy Gun 7 | . 25 24 8 9 9 3 . . . . . . . . . . Ballistic Gun 4 | . . . 3 . . . . 3 7 7 15 17 17 17 13 13 Ballistic Cannon 4 | . . . 11 9 9 9 . . . . . . . . 2 2 Slashing Weapon 1 | . . . . . . . 7 7 7 7 2 . . . . . Peak Build Rating 76 | 5 7 14 25 27 26 48 49 53 53 53 58 69 68 68 74 76 Average Rating 35 | 3 6 7 16 25 26 37 44 51 53 53 56 64 68 68 68 73 On Entrance 40 | . 5 7 14 25 26 26 44 49 53 53 53 58 68 68 68 74 Avg Prop Armor Cover (%) 2 | . . . 2 . . . . . . . . . . . . . Naked Turns . | . . . . . . . . . . . . . . . . . Heaviest Build 46 | 9 14 24 25 25 25 32 24 28 26 26 34 38 36 36 46 38 Greatest Support 57 | 20 25 32 32 25 25 27 35 35 35 35 39 57 57 57 57 50 Greatest Overweight (x) 2 | . . . 2 . . 1 . . . . . 1 . . . 1 Average Overweight (x) . | . . . . . . . . . . . . . . . . . Largest Inventory Capacity 3 | . 1 1 1 2 2 3 3 3 3 3 3 3 3 3 3 3 Average Capacity 2 | . . 1 1 1 2 2 3 3 3 3 3 3 3 3 3 3 Most Carried 3 | . . 1 1 2 2 3 3 3 3 3 3 3 3 2 3 3 Average Carried 1 | . . . 1 1 2 2 1 2 3 3 2 2 2 2 2 2 Final Capacity 3 | . 1 1 1 2 2 3 3 3 3 3 3 3 3 3 3 3 Final Carried 3 | . . 1 1 2 2 1 3 3 3 3 3 3 2 2 3 3 Class Distribution -------------------- 39% | Hacker-Sprinter 26% | Mutant 16% | Hacker-Mutant 9% | Derelict-Gunner 7% | Sprinter Dominant Class ---------------- Mutant | -10/Materials Mutant | -10/Mines Mutant | -9/Materials Sprinter | -9/Storage Hacker-Sprinter | -9/Recycling Hacker-Mutant | -7/Factory Hacker-Sprinter | -7/Lower Caves Hacker-Sprinter | -7/Lower Caves Hacker-Sprinter | -7/Data Miner Hacker-Sprinter | -6/Proximity Caves Hacker-Sprinter | -6/Factory Derelict-Gunner | -6/Lower Caves Derelict-Gunner | -6/Lower Caves Derelict-Gunner | -5/Factory Derelict-Gunner | -5/DSF Derelict-Gunner | -4/Factory Resources | -11 -10 -10 -9 -9 -9 -7 -7 -7 -7 -6 -6 -6 -6 -5 -5 -4 ----------- Run | Yrd Mat Min Mat Sto Rec Fac Low Low Dat Pro Fac Low Low Fac DSF Fac Matter Collected 1862 | 260 20 40 95 175 . 571 102 10 . 28 109 314 . . 138 . Remotely . | . . . . . . . . . . . . . . . . . Salvage Created 1631 | . 74 128 149 428 . 500 74 78 . 11 35 63 . . 91 . Parts 113 | . 8 11 7 33 . 26 5 4 . 4 12 2 . . 1 . Haulers Intercepted 2 | . . . . 2 . . . . . . . . . . . . Recyclers Shooed 2 | . 2 . . . . . . . . . . . . . . . Parts Field Recycled . | . . . . . . . . . . . . . . . . . Retrieved Matter . | . . . . . . . . . . . . . . . . . Parts Self-Destructed 26 | . . . . . . . 4 3 . 4 . 15 . . . . Prevented . | . . . . . . . . . . . . . . . . . Parts Restored . | . . . . . . . . . . . . . . . . . Kills | -11 -10 -10 -9 -9 -9 -7 -7 -7 -7 -6 -6 -6 -6 -5 -5 -4 ------- Run | Yrd Mat Min Mat Sto Rec Fac Low Low Dat Pro Fac Low Low Fac DSF Fac Combat Hostiles Destroyed 44 | . 3 4 3 8 . 13 1 2 . 2 6 1 . . 1 . Melee 4 | . . . . . . 1 1 2 . . . . . . . . Guns 20 | . 3 4 . 2 . 1 . . . 2 6 1 . . 1 . Cannons 19 | . . . 3 5 . 11 . . . . . . . . . . AOE 1 | . . . . 1 . . . . . . . . . . . . Classes Destroyed 10 | . 1 1 1 3 . 2 . . . 1 . . . . 1 . Builder 1 | . . . . 1 . . . . . . . . . . . . Hauler 2 | . . . . 2 . . . . . . . . . . . . Drone 2 | . . . . . . . . . . 2 . . . . . . Watcher 4 | . . . . 1 . 3 . . . . . . . . . . Swarmer 8 | . 3 2 . . . 3 . . . . . . . . . . Grunt 16 | . . 2 . 5 . 5 . 1 . . 3 . . . . . Sentry 9 | . . . 3 3 . 1 . . . . 2 . . . . . Specialist 1 | . . . . . . . . . . . . . . . 1 . Hunter 4 | . . . . . . 1 1 1 . . 1 . . . . . Programmer 4 | . . . . . . 3 . . . . . 1 . . . . Best Kill Streak 9 | . 3 2 2 9 . 4 1 2 . 2 5 1 . . 1 . Combat Bots Only 5 | . 3 2 2 4 . 4 1 2 . 2 5 1 . . 1 . Max Kills in Single Turn 2 | . 2 1 1 1 . 1 1 1 . 1 1 1 . . 1 . Gunslinging 1 | . 1 . . . . . . . . . . . . . . . Exploded 1 | . . . . 1 . . . . . . . . . . . . Melee 1 | . . . . . . 1 1 1 . . . . . . . . Uniques/NPCs Destroyed . | . . . . . . . . . . . . . . . . . Combat | -11 -10 -10 -9 -9 -9 -7 -7 -7 -7 -6 -6 -6 -6 -5 -5 -4 -------- Run | Yrd Mat Min Mat Sto Rec Fac Low Low Dat Pro Fac Low Low Fac DSF Fac Hostile Shots Fired 434 | . 15 33 6 16 . 163 13 26 . 8 59 29 . . 65 1 Missed 204 | . 5 6 2 7 . 81 6 17 . 5 24 15 . . 36 . Hits 230 | . 10 27 4 9 . 82 7 9 . 3 35 14 . . 29 1 Melee 2 | . . . . . . . . . . . 2 . . . . . Projectile 228 | . 10 27 4 9 . 82 7 9 . 3 33 14 . . 29 1 Critical Strikes 10 | . . . . . . 3 . . . . 5 . . . 2 . Part Disruptions 2 | . . . . . . . . . . . . . . . 2 . Damage Taken 2951 | . 87 357 60 89 . 756 89 75 . 29 473 165 . . 761 10 Core 2285 | . 54 250 38 71 . 603 72 60 . 23 371 133 . . 602 8 Absorbed by Shields 743 | . . . . 33 . 289 34 29 . 10 183 85 . . 70 10 Redirected to Core 1964 | . 47 186 38 61 . 462 60 45 . 23 337 105 . . 592 8 Ignored by Resistances 189 | . . . . . . 66 10 9 . 4 37 12 . . 49 2 Core Remaining (%) 69 | 100 . 80 . . 100 . . . . 71 . . 67 . . . Volleys Fired 140 | . 11 8 3 26 . 46 . . . 3 21 4 . . 18 . Largest 3 | . 2 2 2 2 . 2 . . . 1 3 3 . . 3 . Hottest 117 | . 80 80 77 82 . 117 . . . 28 84 84 . . 104 . Shots Fired 295 | . 22 16 4 45 . 82 . . . 3 61 12 . . 50 . Gun 189 | . 22 16 1 19 . 9 . . . 3 61 12 . . 46 . Cannon 106 | . . . 3 26 . 73 . . . . . . . . 4 . Launcher . | . . . . . . . . . . . . . . . . . Special . | . . . . . . . . . . . . . . . . . Kinetic 231 | . . . 3 26 . 76 . . . 3 61 12 . . 50 . Thermal 6 | . . . . . . 6 . . . . . . . . . . Explosive . | . . . . . . . . . . . . . . . . . Electromagnetic 58 | . 22 16 1 19 . . . . . . . . . . . . Robot Hit Streak 29 | . 9 3 3 13 . 9 . . . 6 29 2 . . 15 . Robot Miss Streak 5 | . 4 4 1 3 . 5 . . . . 2 2 . . 1 . Penetration Max . | . . . . . . . . . . . . . . . . . Secondary Targets 2 | . 1 1 . . . . . . . . . . . . . . Max Gunslinging Chain 1 | . 1 1 . . . . . . . . . . . . . . Shots Hit Robots 197 | . 11 10 3 32 . 46 2 5 . 2 42 4 . . 40 . Core Hits 88 | . 5 7 3 16 . 26 2 2 . 2 18 2 . . 5 . Critical Kills . | . . . . . . . . . . . . . . . . . Critical Parts Destroyed 1 | . . . . . . . . . . . 1 . . . . . Critical Strikes 8 | . . . . 3 . 3 1 . . . 1 . . . . . Destroy 1 | . . . . . . . . . . . 1 . . . . . Blast 6 | . . . . 3 . 3 . . . . . . . . . . Sever 1 | . . . . . . . 1 . . . . . . . . . Melee Attacks 12 | . . . . . . 2 2 6 . . 2 . . . . . Impact . | . . . . . . . . . . . . . . . . . Slashing 12 | . . . . . . 2 2 6 . . 2 . . . . . Piercing . | . . . . . . . . . . . . . . . . . Sneak Attacks 1 | . . . . . . . . 1 . . . . . . . . Combat Hostiles 1 | . . . . . . . . 1 . . . . . . . . Follow-up Attacks . | . . . . . . . . . . . . . . . . . Damage Inflicted 4603 | . 160 186 72 814 . 1376 117 362 . 46 712 111 . . 647 . Guns 2156 | . 160 122 . 254 . 197 . . . 46 671 111 . . 595 . Cannons 1610 | . . . 72 426 . 1060 . . . . . . . . 52 . Explosions 198 | . . 64 . 134 . . . . . . . . . . . . Melee 639 | . . . . . . 119 117 362 . . 41 . . . . . Ramming . | . . . . . . . . . . . . . . . . . Kinetic 3113 | . . . 72 426 . 1140 . . . 46 671 111 . . 647 . Thermal 315 | . . 64 . 134 . 117 . . . . . . . . . . Explosive . | . . . . . . . . . . . . . . . . . Electromagnetic 536 | . 160 122 . 254 . . . . . . . . . . . . Impact . | . . . . . . . . . . . . . . . . . Slashing 639 | . . . . . . 119 117 362 . . 41 . . . . . Piercing . | . . . . . . . . . . . . . . . . . Highest Corruption 3 | . . . . . . 3 3 3 3 3 . 1 1 . 3 . Average Corruption 2 | . . . . . . 2 3 3 3 3 . 1 1 . 2 . Corruption Purged . | . . . . . . . . . . . . . . . . . Corruption Blocked . | . . . . . . . . . . . . . . . . . Effects 20 | . . . . . . 6 5 3 . 4 . . . . 2 . Message Errors 8 | . . . . . . 2 3 2 . . . . . . 1 . Matter Fused 6 | . . . . . . 3 1 . . 2 . . . . . . Heat Flow Errors 1 | . . . . . . 1 . . . . . . . . . . Energy Discharges 2 | . . . . . . . 1 . . 1 . . . . . . Data Loss (minor) 1 | . . . . . . . . . . . . . . . 1 . Data Loss (major) 2 | . . . . . . . . 1 . 1 . . . . . . Overload Shots . | . . . . . . . . . . . . . . . . . Overflow Damage 10 | . . . . . . 6 . 4 . . . . . . . . Projectiles 6 | . . . . . . 6 . . . . . . . . . . Explosions . | . . . . . . . . . . . . . . . . . Melee 4 | . . . . . . . . 4 . . . . . . . . Knockbacks 13 | . . . . 1 . 12 . . . . . . . . . . Impact . | . . . . . . . . . . . . . . . . . Kinetic 13 | . . . . 1 . 12 . . . . . . . . . . Secondary . | . . . . . . . . . . . . . . . . . Self-Inflicted Damage 32 | . . 32 . . . . . . . . . . . . . . Shots 1 | . . 1 . . . . . . . . . . . . . . Rammed . | . . . . . . . . . . . . . . . . . Targets Rammed . | . . . . . . . . . . . . . . . . . Kicked . | . . . . . . . . . . . . . . . . . Crushed . | . . . . . . . . . . . . . . . . . Highest Temperature 184 | . 108 159 36 104 . 184 . . . . 15 . . . . . Average Temperature 46 | . 40 69 15 42 . 53 . . . . 6 . . . . . Received Heat Transfer 638 | . 6 126 18 36 . 204 18 38 . 9 171 12 . . . . Siege Activations . | . . . . . . . . . . . . . . . . . Martial Activations . | . . . . . . . . . . . . . . . . . Shielding Activations . | . . . . . . . . . . . . . . . . . Robots Disrupted . | . . . . . . . . . . . . . . . . . Combat Hostiles . | . . . . . . . . . . . . . . . . . Robots Corrupted . | . . . . . . . . . . . . . . . . . Combat Hostiles . | . . . . . . . . . . . . . . . . . Parts Fried . | . . . . . . . . . . . . . . . . . Impact Corruptions . | . . . . . . . . . . . . . . . . . Robots Melted . | . . . . . . . . . . . . . . . . . Combat Hostiles . | . . . . . . . . . . . . . . . . . Parts Melted . | . . . . . . . . . . . . . . . . . Heat Transferred 525 | . . 100 . 150 . 275 . . . . . . . . . . Parts Sabotaged . | . . . . . . . . . . . . . . . . . Parts Stolen . | . . . . . . . . . . . . . . . . . Parts Stripped . | . . . . . . . . . . . . . . . . . Power Chain Reactions 2 | . . 1 . 1 . . . . . . . . . . . . Alert | -11 -10 -10 -9 -9 -9 -7 -7 -7 -7 -6 -6 -6 -6 -5 -5 -4 ------- Run | Yrd Mat Min Mat Sto Rec Fac Low Low Dat Pro Fac Low Low Fac DSF Fac Maximum Alert Level 1 | . . . . 1 . 1 . . . . 1 . . . . . Low Security (%) 83 | 100 100 100 100 97 100 84 . . . . 6 . . 100 100 100 Level 1 16 | . . . . 2 . 15 . . . . 93 . . . . . Level 2 . | . . . . . . . . . . . . . . . . . Level 3 . | . . . . . . . . . . . . . . . . . Level 4 . | . . . . . . . . . . . . . . . . . Level 5 . | . . . . . . . . . . . . . . . . . High Security . | . . . . . . . . . . . . . . . . . Max Security . | . . . . . . . . . . . . . . . . . Peak Influence 393 | . 60 74 50 200 78 265 . . . . 393 . . 51 52 31 Initial 200 | . . 3 19 12 78 2 . . . . 200 . . 51 30 16 Average 82 | . 25 10 15 112 36 83 . . . . 311 . . 49 43 19 Influence Increases 1969 | . 70 106 90 278 20 540 135 65 . 130 465 30 . 3 22 15 Destroy 0b10 Robot/C 840 | . 60 80 60 160 . 260 20 40 . . 120 20 . . 20 . Destroy 0b10 Robot/NC 45 | . . . . 20 . 15 . . . 10 . . . . . . Destroy Leader 242 | . 10 20 30 46 . 76 10 10 . . 30 10 . . . . Successful Hack 39 | . . . . . 20 4 . . . . 12 . . 3 . . Disable Machine 75 | . . . . 30 . 45 . . . . . . . . . . Destroy Structure 23 | . . 6 . 7 . 5 . . . . 3 . . . 2 . Advance Influence 150 | . . . . . . . . . . . 150 . . . . . Partial Spotted 30 | . . . . 15 . . . . . . . . . . . 15 Lose Combat Pursuer 525 | . . . . . . 135 105 15 . 120 150 . . . . . Influence Decreases 1948 | . 60 66 110 108 213 288 167 104 188 50 190 282 21 41 34 26 Entered New Map 756 | . . 7 31 18 122 5 97 44 188 . 30 132 21 31 14 16 Time Decay 1081 | . 60 59 79 90 30 273 70 60 . 50 160 140 . 10 . . Lost Part 40 | . . . . . . . . . . . . 10 . . 20 10 Lost Ally 10 | . . . . . . 10 . . . . . . . . . . Purge Threat 61 | . . . . . 61 . . . . . . . . . . . Squads Dispatched 15 | . 2 1 . 2 . 5 . . . . 4 . . . 1 . Investigation 5 | . 2 1 . . . . . . . . 2 . . . . . Extermination 2 | . . . . . . 2 . . . . . . . . . . Reinforcement 3 | . . . . 1 . 1 . . . . . . . . 1 . Assault . | . . . . . . . . . . . . . . . . . Garrison 5 | . . . . 1 . 2 . . . . 2 . . . . . Intercept . | . . . . . . . . . . . . . . . . . Searches Triggered . | . . . . . . . . . . . . . . . . . Construction Impeded . | . . . . . . . . . . . . . . . . . Haulers Reinforced . | . . . . . . . . . . . . . . . . . Active Scanning Responses . | . . . . . . . . . . . . . . . . . Cargo Convoy Interrupts . | . . . . . . . . . . . . . . . . . Stealth | -11 -10 -10 -9 -9 -9 -7 -7 -7 -7 -6 -6 -6 -6 -5 -5 -4 --------- Run | Yrd Mat Min Mat Sto Rec Fac Low Low Dat Pro Fac Low Low Fac DSF Fac Distress Signals 2 | . . . . 2 . . . . . . . . . . . . Communications Jammed . | . . . . . . . . . . . . . . . . . Distress Signals . | . . . . . . . . . . . . . . . . . Times Spotted 116 | . 6 12 3 13 . 29 8 2 . 8 22 8 . . 4 1 Peak Tracking Total 10 | . 3 3 2 5 . 7 7 1 . 8 10 5 . . 3 1 Tactical Retreats 19 | . . 3 . . . 5 3 1 . 3 3 1 . . . . ECM-based Alert Blocks 7 | . . 5 . . . . . . . . . 2 . . . . Traps | -11 -10 -10 -9 -9 -9 -7 -7 -7 -7 -6 -6 -6 -6 -5 -5 -4 ------- Run | Yrd Mat Min Mat Sto Rec Fac Low Low Dat Pro Fac Low Low Fac DSF Fac Traps Triggered 3 | . 1 . . . . . . . . . 1 . . 1 . . Indirectly . | . . . . . . . . . . . . . . . . . Trap Hack Attempts . | . . . . . . . . . . . . . . . . . Triggered . | . . . . . . . . . . . . . . . . . Disarmed . | . . . . . . . . . . . . . . . . . Reprogrammed . | . . . . . . . . . . . . . . . . . Reused . | . . . . . . . . . . . . . . . . . Traps Extracted . | . . . . . . . . . . . . . . . . . Installed . | . . . . . . . . . . . . . . . . . Triggered . | . . . . . . . . . . . . . . . . . Machines | -11 -10 -10 -9 -9 -9 -7 -7 -7 -7 -6 -6 -6 -6 -5 -5 -4 ---------- Run | Yrd Mat Min Mat Sto Rec Fac Low Low Dat Pro Fac Low Low Fac DSF Fac Machines Disabled 5 | . . . . 2 . 3 . . . . . . . . . . Max in Single Turn 1 | . . . . 1 . 1 . . . . . . . . . . Machines Repaired . | . . . . . . . . . . . . . . . . . Machines Dismantled . | . . . . . . . . . . . . . . . . . Machines Sabotaged . | . . . . . . . . . . . . . . . . . Overloaded Fab Kills . | . . . . . . . . . . . . . . . . . Hacking | -11 -10 -10 -9 -9 -9 -7 -7 -7 -7 -6 -6 -6 -6 -5 -5 -4 --------- Run | Yrd Mat Min Mat Sto Rec Fac Low Low Dat Pro Fac Low Low Fac DSF Fac Machines Accessed 22 | . . 1 . 1 8 1 . . 4 . 5 1 . 1 . . Terminals 8 | . . . . 1 4 . . . . . 2 . . 1 . . Fabricators 3 | . . . . . . 1 . . . . 2 . . . . . Repair Stations . | . . . . . . . . . . . . . . . . . Recycling Units 4 | . . . . . 4 . . . . . . . . . . . Scanalyzers 1 | . . . . . . . . . . . 1 . . . . . Garrison Access . | . . . . . . . . . . . . . . . . . Total Hacks 82 | . . 1 . 3 28 1 . . 29 . 18 1 . 1 . . Successful 57 | . . 1 . . 12 1 . . 29 . 12 1 . 1 . . Failed 25 | . . . . 3 16 . . . . . 6 . . . . . Catastrophic 4 | . . . . 1 1 . . . . . 2 . . . . . Database Lockouts . | . . . . . . . . . . . . . . . . . Manual . | . . . . . . . . . . . . . . . . . Terminals 29 | . . . . 3 16 . . . . . 9 . . 1 . . Fabricators 5 | . . . . . . 1 . . . . 4 . . . . . Repair Stations . | . . . . . . . . . . . . . . . . . Recycling Units 12 | . . . . . 12 . . . . . . . . . . . Scanalyzers 5 | . . . . . . . . . . . 5 . . . . . Garrison Access . | . . . . . . . . . . . . . . . . . Terminal Hacks 42 | . . 1 . . 7 . . . 29 . 3 1 . 1 . . Record 8 | . . . . . . . . . 7 . 1 . . . . . Part Schematic 12 | . . . . . . . . . 12 . . . . . . . Robot Schematic 7 | . . . . . . . . . 7 . . . . . . . Prototype ID Bank 6 | . . . . . 3 . . . 3 . . . . . . . Open Door 2 | . . 1 . . . . . . . . . 1 . . . . Open DSF 1 | . . . . . . . . . . . . . . 1 . . Unreport Threat 1 | . . . . . 1 . . . . . . . . . . . Surveillance Status 1 | . . . . . 1 . . . . . . . . . . . Reinforcement Status 1 | . . . . . . . . . . . 1 . . . . . Hauler Manifests 1 | . . . . . 1 . . . . . . . . . . . Registered Components 1 | . . . . . 1 . . . . . . . . . . . Zone Layout 1 | . . . . . . . . . . . 1 . . . . . Fabricator Hacks 5 | . . . . . . 1 . . . . 4 . . . . . Load Schematic 2 | . . . . . . . . . . . 2 . . . . . Build 3 | . . . . . . 1 . . . . 2 . . . . . Repair Station Hacks . | . . . . . . . . . . . . . . . . . Recycling Unit Hacks 5 | . . . . . 5 . . . . . . . . . . . Retrieve Matter 1 | . . . . . 1 . . . . . . . . . . . Retrieve Components 4 | . . . . . 4 . . . . . . . . . . . Scanalyzer 5 | . . . . . . . . . . . 5 . . . . . Retrieve Study 5 | . . . . . . . . . . . 5 . . . . . Garrison Access Hacks . | . . . . . . . . . . . . . . . . . Unauthorized Hacks . | . . . . . . . . . . . . . . . . . Terminals . | . . . . . . . . . . . . . . . . . Fabricators . | . . . . . . . . . . . . . . . . . Repair Stations . | . . . . . . . . . . . . . . . . . Recycling Units . | . . . . . . . . . . . . . . . . . Scanalyzers . | . . . . . . . . . . . . . . . . . Garrison Access . | . . . . . . . . . . . . . . . . . Data Cores Recovered . | . . . . . . . . . . . . . . . . . Used . | . . . . . . . . . . . . . . . . . Hacking Detections 12 | . . . . 1 6 . . . . . 4 . . 1 . . Full Trace Events 2 | . . . . . . . . . . . 2 . . . . . Feedback Events . | . . . . . . . . . . . . . . . . . Feedback Blocked . | . . . . . . . . . . . . . . . . . Robot Schematics Acquired 7 | . . . . . . . . . 7 . . . . . . . Robots Built 1 | . . . . . . 1 . . . . . . . . . . Authchips . | . . . . . . . . . . . . . . . . . Time 116 | . . . . . . 116 . . . . . . . . . . Total Robot Build Rating 3 | . . . . . . 3 . . . . . . . . . . Part Schematics Acquired 12 | . . . . . . . . . 12 . . . . . . . Parts Built 2 | . . . . . . . . . . . 2 . . . . . Authchips . | . . . . . . . . . . . . . . . . . Time 247 | . . . . . . . . . . . 247 . . . . . Total Part Build Rating 10 | . . . . . . . . . . . 10 . . . . . Part Studies Acquired 5 | . . . . . . . . . . . 5 . . . . . Parts Repaired . | . . . . . . . . . . . . . . . . . Time . | . . . . . . . . . . . . . . . . . Parts Recycled . | . . . . . . . . . . . . . . . . . Recycled Matter . | . . . . . . . . . . . . . . . . . Retrieved Matter . | . . . . . . . . . . . . . . . . . Retrieved Components 4 | . . . . . 4 . . . . . . . . . . . Parts Scanalyzed . | . . . . . . . . . . . . . . . . . Part Schematics Acquired . | . . . . . . . . . . . . . . . . . Parts Damaged . | . . . . . . . . . . . . . . . . . Bothacking | -11 -10 -10 -9 -9 -9 -7 -7 -7 -7 -6 -6 -6 -6 -5 -5 -4 ------------ Run | Yrd Mat Min Mat Sto Rec Fac Low Low Dat Pro Fac Low Low Fac DSF Fac Used RIF Installer . | . . . . . . . . . . . . . . . . . Robots Hacked . | . . . . . . . . . . . . . . . . . Non-combat . | . . . . . . . . . . . . . . . . . Combat . | . . . . . . . . . . . . . . . . . Robot Hacks Applied . | . . . . . . . . . . . . . . . . . Relay Couplers Released . | . . . . . . . . . . . . . . . . . Fabnet Peak Effective % . | . . . . . . . . . . . . . . . . . Robots Rewired . | . . . . . . . . . . . . . . . . . Allies Hacked . | . . . . . . . . . . . . . . . . . Hacks Repelled . | . . . . . . . . . . . . . . . . . Allies | -11 -10 -10 -9 -9 -9 -7 -7 -7 -7 -6 -6 -6 -6 -5 -5 -4 -------- Run | Yrd Mat Min Mat Sto Rec Fac Low Low Dat Pro Fac Low Low Fac DSF Fac Total Allies 1 | . . . . . . 1 . . . . . . . . . . Largest Group 1 | . . . . . . 1 . . . . . . . . . . Highest-Rated Group 26 | . . . . . . 26 . . . . . . . . . . Highest-Rated Ally 26 | . . . . . . 26 . . . . . . . . . . Total Orders . | . . . . . . . . . . . . . . . . . Ally Attacks . | . . . . . . . . . . . . . . . . . Total Damage . | . . . . . . . . . . . . . . . . . Kills . | . . . . . . . . . . . . . . . . . Allies Corrupted . | . . . . . . . . . . . . . . . . . Allies Melted . | . . . . . . . . . . . . . . . . . Intel | -11 -10 -10 -9 -9 -9 -7 -7 -7 -7 -6 -6 -6 -6 -5 -5 -4 ------- Run | Yrd Mat Min Mat Sto Rec Fac Low Low Dat Pro Fac Low Low Fac DSF Fac Active Infowar (turns) 2269 | . 146 563 206 8 . 120 154 137 24 170 325 273 11 22 102 8 Sensors 1344 | . . . . . . 118 154 137 24 170 325 273 11 22 102 8 ECM 988 | . 146 563 206 8 . 2 . . . . . 63 . . . . Robot Analysis Total . | . . . . . . . . . . . . . . . . . Derelict Logs Recovered 5 | . . 1 . . . . 1 . . 2 . 1 . . . . Drone Launches . | . . . . . . . . . . . . . . . . . Drone Recoveries . | . . . . . . . . . . . . . . . . . Exploration | -11 -10 -10 -9 -9 -9 -7 -7 -7 -7 -6 -6 -6 -6 -5 -5 -4 ------------- Run | Yrd Mat Min Mat Sto Rec Fac Low Low Dat Pro Fac Low Low Fac DSF Fac Turns Passed 3592 | 78 166 563 206 191 108 1023 154 137 24 170 325 286 11 22 114 14 Spaces Moved 5669 | 57 107 395 215 242 344 1350 471 364 83 549 617 687 13 52 107 16 Core 8 | 8 . . . . . . . . . . . . . . . . Treads . | . . . . . . . . . . . . . . . . . Legs 657 | 49 107 395 106 . . . . . . . . . . . . . Wheels . | . . . . . . . . . . . . . . . . . Hover . | . . . . . . . . . . . . . . . . . Flight 5004 | . . . 109 242 344 1350 471 364 83 549 617 687 13 52 107 16 Fastest Speed 26 | 50 120 120 26 26 26 26 28 29 29 29 29 29 37 37 35 30 Average Speed 46 | 110 120 120 76 26 26 55 28 29 29 29 29 36 37 37 37 35 Slowest Speed 215 | 120 120 125 215 26 26 112 29 29 29 29 29 114 37 37 43 111 Overloaded Moves . | . . . . . . . . . . . . . . . . . Propulsion Burnouts . | . . . . . . . . . . . . . . . . . Robots Hopped 8 | . . . . 2 2 2 . . . . 2 . . . . . Potential Cave-ins . | . . . . . . . . . . . . . . . . . Cave-ins Triggered . | . . . . . . . . . . . . . . . . . Exploration Rate (%) 44 | 4 33 69 21 47 94 28 70 61 69 75 20 78 6 2 86 1 Regions Visited 16 Branch Regions 9 Pre-discovered Areas . | . . . . . . . . . . . . . . . . . Known Exits Taken 10 | . . 1 . . . 1 1 1 1 1 1 1 1 1 . . Unknown Exits Taken 5 | 1 1 . 1 1 1 . . . . . . . . . . . Scrap Searched 13 | . . 1 . . . . 2 2 . 3 . 5 . . . . Spaces Dug . | . . . . . . . . . . . . . . . . . Terrain Destroyed 20 | . . 6 . 6 . 4 . . . . 2 1 . . 1 . Melee . | . . . . . . . . . . . . . . . . . Projectile 7 | . . . . 2 . 4 . . . . . 1 . . . . AOE 10 | . . 6 . 4 . . . . . . . . . . . . Terrain Rammed . | . . . . . . . . . . . . . . . . . Walls Destroyed . | . . . . . . . . . . . . . . . . . Machines Disabled . | . . . . . . . . . . . . . . . . . Actions | -11 -10 -10 -9 -9 -9 -7 -7 -7 -7 -6 -6 -6 -6 -5 -5 -4 --------- Run | Yrd Mat Min Mat Sto Rec Fac Low Low Dat Pro Fac Low Low Fac DSF Fac Total 6311 | 69 121 468 251 323 359 1546 488 382 82 556 711 715 19 54 142 25 Wait 273 | 6 2 48 12 31 18 80 12 9 . . 47 8 . . . . Move 5637 | 56 106 394 214 237 339 1345 470 363 82 548 612 686 12 51 106 16 Hop 8 | . . . . 2 2 2 . . . . 2 . . . . . Pick Up 28 | . . 4 . 4 . 3 3 1 . . 3 3 . . 5 2 Fast Attach 51 | 6 2 . 7 7 . 20 . 1 . . 1 6 . . 1 . Attach 10 | . . 1 . . . 3 1 1 . . 3 . . . 1 . Detach 3 | . . . . . . 3 . . . . . . . . . . Swap 16 | . . 3 1 . . . . . . . 2 2 . . 5 3 Drop 64 | 1 . 3 5 9 . 24 . 1 . . 4 6 1 . 6 4 Fire 140 | . 11 8 3 26 . 46 . . . 3 21 4 . . 18 . Melee 12 | . . . . . . 2 2 6 . . 2 . . . . . Ram . | . . . . . . . . . . . . . . . . . Kick . | . . . . . . . . . . . . . . . . . Crush . | . . . . . . . . . . . . . . . . . Escape Stasis 3 | . . . . . . . . . . . . . . 3 . . Rewire . | . . . . . . . . . . . . . . . . . Trap . | . . . . . . . . . . . . . . . . . Miscellaneous 66 | . . 7 9 7 . 18 . . . 5 14 . 6 . . . Route ------- -11/Scrapyard -10/Materials -10/Mines (discovered 2 exits: *Mat x2) -9/Materials -9/Storage -9/Recycling -7/Factory -7/Lower Caves -7/Lower Caves -7/Data Miner -6/Proximity Caves -6/Factory (discovered 2 exits: *Low x2) -6/Lower Caves -6/Lower Caves -5/Factory -5/DSF -4/Factory (discovered 1 exit: [*Upp]) History --------- Turn | Location | Event 3 | -11/Scrapyard | Upgraded with Power slot (x1) 3 | -11/Scrapyard | Upgraded with Propulsion slot (x1) 3 | -11/Scrapyard | Upgraded with Utility slot (x1) 3 | -11/Scrapyard | Upgraded with Weapon slot (x1) 8 | -11/Scrapyard | Discovered new exit (range 16) 79 | -11/Scrapyard | Entered Materials 235 | -10/Materials | Discovered new exit (range 9) 245 | -10/Materials | Entered Mines 296 | -10/Mines | Discovered new exit (range 5) 310 | -10/Mines | Build established: Mutant 509 | -10/Mines | Identified exit to Materials 776 | -10/Mines | Met a Derelict shopkeep closing up shop 808 | -10/Mines | Entered Materials 810 | -9/Materials | Reached level 2 865 | -9/Materials | Reached level 3 965 | -9/Materials | Upgraded with Propulsion slot (x2) 986 | -9/Materials | Discovered new exit (range 11) 1014 | -9/Materials | Entered Storage 1016 | -9/Storage | Met 01-MTF 1028 | -9/Storage | Upgraded with Utility slot (x1) 1047 | -9/Storage | Reached level 4 1067 | -9/Storage | Garrison activated, responded to threat 1202 | -9/Storage | Discovered new exit (range 3) 1205 | -9/Storage | Entered Recycling 1205 | -9/Recycling | Accompanied by 1 ally (01-MTF) 1207 | -9/Recycling | Reached level 5 1303 | -9/Recycling | Discovered new exit (range 16) 1313 | -9/Recycling | Entered Factory 1315 | -7/Factory | Reached level 6 1344 | -7/Factory | Upgraded with Utility slot (x1) 1344 | -7/Factory | Upgraded with Weapon slot (x1) 1507 | -7/Factory | Fabricated O-24 Administrator (x1) 2002 | -7/Factory | Reached level 7 2165 | -7/Factory | Garrison activated, responded to threat 2333 | -7/Factory | Discovered new exit (range 12) 2336 | -7/Factory | Identified exit to Lower Caves 2336 | -7/Factory | Entered Lower Caves 2359 | -7/Lower Caves | Attracted the attention of an 0b10 outpost 2400 | -7/Lower Caves | Learned Factory garrison access intel 2432 | -7/Lower Caves | Encountered a Warlord checkpoint 2473 | -7/Lower Caves | Discovered new exit (range 11) 2475 | -7/Lower Caves | Reached level 8 2478 | -7/Lower Caves | Identified exit to Lower Caves 2479 | -7/Lower Caves | Upgraded with Propulsion slot (x1) 2490 | -7/Lower Caves | Entered another Lower Caves area 2500 | -7/Lower Caves | Build established: Hacker-Sprinter 2609 | -7/Lower Caves | Discovered new exit (range 12) 2621 | -7/Lower Caves | Identified exit to Data Miner 2627 | -7/Lower Caves | Entered Data Miner 2627 | -7/Data Miner | Discovered new exit (range 6) 2633 | -7/Data Miner | Met Data Miner 2639 | -7/Data Miner | Acquired the access code to Warlord's prototype stash 2645 | -7/Data Miner | Received God Mode back door access code from Data Miner 2651 | -7/Data Miner | Identified exit to Proximity Caves 2651 | -7/Data Miner | Entered Proximity Caves 2653 | -6/Proximity Caves | Reached level 9 2685 | -6/Proximity Caves | Spotted B-75 Beast 2686 | -6/Proximity Caves | Learned 8 Factory zone layouts 2696 | -6/Proximity Caves | Learned 4 Factory zone layouts 2717 | -6/Proximity Caves | Spotter reported a threat 2818 | -6/Proximity Caves | Discovered new exit (range 12) 2821 | -6/Proximity Caves | Identified exit to Factory 2821 | -6/Proximity Caves | Entered Factory 2822 | -6/Factory | Identified exit to Lower Caves 2823 | -6/Factory | Loaded intel: 4 garrison access locations 2823 | -6/Factory | Reached level 10 2868 | -6/Factory | Upgraded with Utility slot (x1) 2941 | -6/Factory | Core integrity fell below 50% 2963 | -6/Factory | Garrison activated, responded to threat 2998 | -6/Factory | Reached level 11 3021 | -6/Factory | Fabricated Lgt. Regenerative Plating? 3025 | -6/Factory | Fabricated Force Field (x2) 3095 | -6/Factory | Discovered exit to Lower Caves (range 16) 3146 | -6/Factory | Entered Lower Caves 3175 | -6/Lower Caves | Upgraded with Propulsion slot (x1) 3175 | -6/Lower Caves | Upgraded with Utility slot (x1) 3255 | -6/Lower Caves | Spotted B-75 Beast 3382 | -6/Lower Caves | Encountered a Warlord checkpoint 3430 | -6/Lower Caves | Discovered new exit (range 6) 3432 | -6/Lower Caves | Identified exit to Lower Caves 3432 | -6/Lower Caves | Entered another Lower Caves area 3440 | -6/Lower Caves | Discovered new exit (range 10) 3443 | -6/Lower Caves | Identified exit to Factory 3443 | -6/Lower Caves | Entered Factory 3445 | -5/Factory | Reached level 12 3465 | -5/Factory | Identified exit to DSF 3465 | -5/Factory | Entered DSF 3465 | -5/DSF | Reached level 13 3465 | -5/DSF | Upgraded with Utility slot (x1) 3524 | -5/DSF | Build established: Derelict-Gunner 3526 | -5/DSF | Additional patrols routed to DSF 3534 | -5/DSF | Core integrity fell below 50% 3560 | -5/DSF | Core integrity fell below 20% 3571 | -5/DSF | Discovered new exit (range 15) 3579 | -5/DSF | Entered Factory 3580 | -4/Factory | Core integrity fell below 50% 3580 | -4/Factory | Core integrity fell below 20% 3581 | -4/Factory | Reached level 14 3589 | -4/Factory | Discovered new exit (range 15) 3593 | -4/Factory | Destroyed by Y-64 Sentinel with KE Penetrator Last Messages --------------- 03568_ Slug penetrates Wall. 03568_ Dropped Mak. Flight Unit. 03569_ Acquired Nuclear Pulse Thruster. 03569_ Reaction Control System destroyed. 03569_ Critical hit (Blast). 03569_ Knocked back. 03571_ EXIT=FOUND 03571_ Penetrated by Slug. 03571_ Slug penetrates Wall. 03574_ Dropped Mic. Nuclear Core+. [Achievement: Window Shopping] LOCATION=UNKNOWN GOAL=ESCAPE 03581_ Reached level 14. 03582_ Dropped Mak. Flight Unit. 03585_ Acquired Mak. Flight Unit. 03589_ EXIT=FOUND 03591_ Dropped Mak. Flight Unit. 03592_ Acquired Nuclear Pulse Thruster. 03593_ Phase Shifter destroyed. Map ----- +----------------------------------------------------+ | ????????????? ???"" """ #?????????????????????? | | ?????????????? """ """ #?????????????????????? | | ??????????????? """ """ #?????????????????????? | | ???????????????? #?????????????????????? | | ????????????????? +?????????????????????? | | ?????????????????? #?????????????????????? | | ???????????????????# #?????????????????????? | | ???????????????????# ###???????????????????? | | ???????????????????# #???????????????????? | | ???????????????????# = #???????????????????? | | ???????????????????# #???????????????????? | | ???????????????????# #???????????????????? | | ???????????????????# #???????????????????? | | ???????????????????# ###???????????????????? | | ???????????????????# #?????????????????????? | | ???????????????????# ######????????????????? | | ???????????????????# #????????????????? | | ???????????????????# +????????????????? | | ???????????????????# """ #????????????????? | | ???????????????????# """ #????????????????? | | ?????????????#?????# """ #????????????????? | | ???????? #T #### ####+#####???????? | | ??????? ] #k??????? | | ??????? == #???????? | | ???????/< Y ! [ +???????? | | ??????? @[[ #???????? | | ???????? =[[ #???????? | | ???????? #########+############+##+#???????? | | ???????? ???????????????????????????????????? | | ?????????##????????????????????????????????????? | | ??????????????????????u????????????????????????? | | ???????????????????????????????????????????????? | | ???????????????????????????????????????????????? | | ???????????????????????????????????????????????? | | ???????????????????????????????????????????????? | | ???????????????????????????????????????????????? | | ???????????????????????????????????????????????? | | ???????????????????????????????????????????????? | | ?????????????????k?????????????????????????????? | | ???????????????????????????????????????????????? | | | | | | | | | | | | | | | | | | | | | +----------------------------------------------------+ Best States ------------- Heat Dissipation 58 Coolant Potential 65 Energy Generation 28 Energy Capacity 445 Matter Stores 300 Matter Capacity 300 Sight Range 17 Robot Scan Range 17 Terrain Scan Density 110 ECM Strength 2 Armor Coverage 150 Resistance: KI 5 Resistance: TH 5 Resistance: EX 5 Weapon Cycling 15 Phase Shifting 5 Evasion (%) 75 Targeting Accuracy 5 Matter Filtering 30 Offensive Hacking 15 Defensive Hacking 16 Item Schematics ----------------- Combat Drone Bay | -7/Data Miner | Free Lgt. Regenerative Plating | -7/Data Miner | Free Multireflex Exoskeleton | -7/Data Miner | Free Exp. Weapon Shielding | -7/Data Miner | Free Imp. Lightning Gun | -7/Data Miner | Free Gyrokinetic Inverter | -7/Data Miner | Free Imp. Weapon Cycler | -7/Data Miner | Free Force Field | -7/Data Miner | Free Enh. Gauss Cannon | -7/Data Miner | Free Lrn. Proton Cannon | -7/Data Miner | Free Imp. Antigrav System | -7/Data Miner | Free Imp. Armor Integrity Analyzer | -7/Data Miner | Free Robot Schematics ------------------ O-24 Administrator | -7/Data Miner | Free B-48 Gladiator | -7/Data Miner | Free H-55 Commando | -7/Data Miner | Free E-15 Imp | -7/Data Miner | Free G-50 Soldier | -7/Data Miner | Free X-62 Marksman | -7/Data Miner | Free L-41 Fighter | -7/Data Miner | Free Fabricated ------------ O-24 Administrator | x1 | -7/Factory | Preloaded Force Field | x2 | -6/Factory Repaired ---------- Nothing Studied --------- Mic. Nuclear Core | -6/Factory | Hacked Cesium-ion Thruster | -6/Factory | Hacked Greatsword | -6/Factory | Hacked Xenon Bombardment Thruster | -6/Factory | Hacked Gauss Rifle | -6/Factory | Hacked Alien Tech Used ----------------- None Achievements -------------- Knowing Is Half The Battle Look Less Dangerous Next Time Window Shopping Challenges ------------ None RPGLIKE | -11 -10 -10 -9 -9 -9 -7 -7 -7 -7 -6 -6 -6 -6 -5 -5 -4 --------- Run | Yrd Mat Min Mat Sto Rec Fac Low Low Dat Pro Fac Low Low Fac DSF Fac Levels Raised 13 | . . . 2 1 1 2 1 . . 1 2 . . 1 1 1 XP Earned 23755 | 3000 350 1000 1950 2150 1070 3375 650 750 650 1000 2310 650 500 1500 1350 1500 XP Spent 20000 | 2000 850 . 1900 1300 1200 3700 1400 . . . 1650 4000 . . 2000 . Upgrades 39 | 4 9 . 2 2 3 9 1 . . . 5 3 . . 1 . Power Slot 1 | 1 . . . . . . . . . . . . . . . . Propulsion Slot 5 | 1 . . 2 . . . 1 . . . . 1 . . . . Utility Slot 6 | 1 . . . 1 . 1 . . . . 1 1 . . 1 . Weapon Slot 2 | 1 . . . . . 1 . . . . . . . . . . Core Integrity 6 | . 6 . . . . . . . . . . . . . . . Heat Dissipation 1 | . . . . . . . . . . . 1 . . . . . Mass Support 2 | . 1 . . . . . . . . . . 1 . . . . Inventory Capacity 3 | . 1 . . 1 . 1 . . . . . . . . . . Sight Range 1 | . . . . . . . . . . . 1 . . . . . Sensor Range 1 | . . . . . . . . . . . 1 . . . . . Terrain Scan Density 1 | . . . . . . . . . . . 1 . . . . . Hack Attack % 3 | . 1 . . . 2 . . . . . . . . . . . Hack Defense % 1 | . . . . . 1 . . . . . . . . . . . KI Resistance % 1 | . . . . . . 1 . . . . . . . . . . TH Resistance % 1 | . . . . . . 1 . . . . . . . . . . EX Resistance % 1 | . . . . . . 1 . . . . . . . . . . KI Damage % 1 | . . . . . . 1 . . . . . . . . . . TH Damage % 1 | . . . . . . 1 . . . . . . . . . . EX Damage % 1 | . . . . . . 1 . . . . . . . . . . Protomatter Created 522 | . . 26 47 137 . 68 . 49 . . 195 . . . . . Integrity Restored 1398 | . . 132 185 115 . 387 . . . 117 327 . 135 . . . Core 1379 | . . 132 178 103 . 387 . . . 117 327 . 135 . . . Parts 19 | . . . 7 12 . . . . . . . . . . . . Protomatter Decayed 128 | . . . . . . 32 . 49 . . 47 . . . . . Game ------ Seed CryofiberVortexClaw Manual? 0 Play Time 01:04:24 Cumulative 43.7 hours Start 2025.11.14 @ 12:55:35 End 2025.11.14 @ 14:02:27 Sessions 1 Manual Loads 0 Difficulty Rogue Special Mode Winter2019/RPGLIKE Game No. 90 Rogue 90 Adventurer 0 Explorer 0 Win Type - Total 0 Types 0/0/0/0/0/0/0/0/0/0 Lore% 15 Gallery% 31 Achievement% 20 Wizard Run 0 Options --------- Layout 0 ASCII 0 Keyboard 0 Movement Mouse Keybinds 0 Fullscreen 2 Font 18/SmallcapsGlow Map View 76x50 Zoom Use 0% Tactical HUD 1 Map Filters NONE Filters NONE Steam 1 RUN: 052028ca-fdf8-4f6a-a595-8f2ed2fb8ed9